bitfinex/quotes_BTCUSD_20240729
["timestamp","ask_amount","ask_price","bid_price","bid_amount"]
[1722272521586,1.69348394,66667.0,66666.0,94.46288876]
[1722272521813,2.5859402,66667.0,66666.0,94.35928299]
[1722272522011,2.48503728,66667.0,66666.0,94.26261299]
[1722272522214,2.99918744,66667.0,66666.0,94.19186837]
[1722272522414,3.15748421,66667.0,66666.0,94.12964266]
[1722272522635,2.30818439,66667.0,66666.0,94.12964266]
[1722272522843,0.74601846,66667.0,66666.0,94.12964266]
[1722272523082,0.12467976,66667.0,66666.0,94.42964566]
[1722272523287,0.0509365,66684.0,66666.0,94.42964566]
[1722272523288,0.149977,66677.0,66666.0,94.27274205]
[1722272523439,0.12464241,66676.0,66668.0,0.0629]
[1722272523643,0.0423316,66699.0,66667.0,0.00095019]
[1722272523644,0.12464241,66675.0,66667.0,0.00095019]
[1722272523849,0.07154355,66692.0,66666.0,94.12964266]
[1722272523850,0.12464241,66674.0,66666.0,94.12964266]
[1722272524047,0.05,66667.0,66666.0,94.12964266]
[1722272524261,0.08434181,66667.0,66666.0,94.12964266]
[1722272524478,0.17464241,66667.0,66666.0,94.12964266]
[1722272524681,0.17664241,66667.0,66666.0,94.12964266]
[1722272524897,1.40600328,66667.0,66666.0,94.12964266]
[1722272525216,2.24799445,66667.0,66666.0,94.12964266]
[1722272525388,2.05974253,66667.0,66666.0,94.12964266]
[1722272525591,2.58881934,66667.0,66666.0,94.12964266]
[1722272525789,2.00892912,66667.0,66666.0,94.10542066]
[1722272526137,0.15973929,66667.0,66666.0,94.10542066]
[1722272526344,0.00861782,66679.0,66666.0,94.10542066]
[1722272526549,0.149999,66667.0,66666.0,94.10542066]
[1722272526782,0.449997,66667.0,66666.0,94.10542066]
[1722272526985,0.501997,66667.0,66666.0,94.10542066]
[1722272527217,0.00861782,66679.0,66666.0,94.24852005]
[1722272527421,1.17153655,66667.0,66666.0,94.10542066]
[1722272527623,1.20995825,66667.0,66666.0,94.10542066]
[1722272527826,1.70305564,66667.0,66666.0,94.10542066]
[1722272528058,2.19011583,66667.0,66666.0,94.10542066]
[1722272528266,2.77961439,66667.0,66666.0,93.80690871]
[1722272528426,3.40406764,66667.0,66666.0,93.71316115]
[1722272528642,3.47022083,66667.0,66666.0,93.71316115]
[1722272528846,3.24389364,66667.0,66666.0,93.71316115]
[1722272529003,3.50412185,66667.0,66666.0,93.71316115]
[1722272529205,2.80555551,66667.0,66666.0,88.88979079]
[1722272529405,2.80555551,66667.0,66666.0,87.71360574]
[1722272529406,3.38571758,66667.0,66666.0,87.71360574]
[1722272529742,8.60568119,66667.0,66666.0,70.49177238]
[1722272529899,8.60568119,66667.0,66666.0,63.20814104]
[1722272529900,10.20561399,66667.0,66666.0,63.20814104]
[1722272530100,10.92856745,66667.0,66666.0,59.84898841]
[1722272530299,12.32069035,66667.0,66666.0,58.40791013]
[1722272530603,10.5025751,66667.0,66666.0,57.64248683]
[1722272530799,5.31651721,66667.0,66666.0,57.50945369]
[1722272531025,4.78120591,66667.0,66666.0,56.81571269]
[1722272531233,4.48242139,66667.0,66666.0,56.65683332]
[1722272531481,1.78472595,66667.0,66666.0,56.65683332]
[1722272531686,1.67148762,66667.0,66666.0,56.65683332]
[1722272531905,0.44919155,66667.0,66666.0,56.65683332]
[1722272532112,0.00038,66673.0,66666.0,56.65683332]
[1722272532247,0.07353443,66667.0,66666.0,56.65683332]
[1722272532468,0.02353443,66667.0,66666.0,56.65683332]
[1722272532671,0.00038,66673.0,66666.0,56.65683332]
[1722272532672,0.00038,66673.0,66666.0,56.79993271]
[1722272533048,0.42926131,66699.0,66669.0,0.14309939]
[1722272533220,0.42926131,66699.0,66675.0,0.14309939]
[1722272533221,0.03509165,66678.0,66675.0,0.14309939]
[1722272533435,39.1,66700.0,66676.0,0.00299951]
[1722272533436,39.05,66700.0,66676.0,0.00299951]
[1722272533644,0.42926131,66697.0,66686.0,0.14309939]
[1722272533843,39.0,66700.0,66686.0,0.14309939]
[1722272534071,39.0,66700.0,66688.0,0.299904]
[1722272534249,39.0,66700.0,66689.0,0.1]
[1722272534250,38.85644083,66700.0,66689.0,0.1]
[1722272534443,38.85644083,66700.0,66690.0,0.14309939]
[1722272534925,38.85644083,66700.0,66666.0,56.65683332]
[1722272534926,0.42926131,66698.0,66666.0,56.65683332]
[1722272535101,0.07154355,66692.0,66678.0,0.14309939]
[1722272535505,0.07154355,66699.0,66678.0,0.14309939]
[1722272535889,0.07154355,66699.0,66684.0,0.14309939]
[1722272536090,0.07154355,66699.0,66690.0,0.29989]
[1722272536295,38.85644083,66700.0,66692.0,0.299884]
[1722272536473,0.07154355,66699.0,66693.0,0.21863257]
[1722272536672,0.07154355,66699.0,66693.0,0.00128936]
[1722272536900,38.85644083,66700.0,66693.0,0.00128936]
[1722272536901,38.82481988,66700.0,66699.0,0.149927]
[1722272537077,38.80960575,66700.0,66699.0,0.14309939]
[1722272537499,38.79162346,66700.0,66699.0,0.59288039]
[1722272537703,38.74067366,66700.0,66699.0,0.89273439]
[1722272537908,38.74067366,66700.0,66699.0,0.38229983]
[1722272538254,38.67832829,66700.0,66699.0,0.59288039]
[1722272538460,38.64685929,66700.0,66699.0,0.89273439]
[1722272538661,38.64685929,66700.0,66699.0,0.59288039]
[1722272539069,38.64685929,66700.0,66699.0,0.89273439]
[1722272539339,38.63187406,66700.0,66699.0,1.21558839]
[1722272539549,38.4400154,66700.0,66699.0,1.48240794]
[1722272539754,38.06916747,66700.0,66699.0,2.13211594]
[1722272540051,35.95018943,66700.0,66699.0,2.34504039]
[1722272540248,35.94338943,66700.0,66699.0,2.04718639]
[1722272540451,33.86473833,66700.0,66699.0,2.58678039]
[1722272540774,28.72082782,66700.0,66699.0,2.58678039]
[1722272540982,28.72082782,66700.0,66699.0,2.53678039]
[1722272540983,23.51687282,66700.0,66699.0,2.53678039]
[1722272541185,20.24561553,66700.0,66699.0,2.58678039]
[1722272541301,16.91557975,66700.0,66699.0,2.48478039]
[1722272541509,14.34306486,66700.0,66699.0,2.57537536]
[1722272541707,14.33808508,66700.0,66699.0,1.70196539]
[1722272541921,14.33808508,66700.0,66699.0,1.71402426]
[1722272542141,14.33808508,66700.0,66699.0,1.90376426]
[1722272542342,14.16416008,66700.0,66699.0,2.25361826]
[1722272542543,14.16416008,66700.0,66699.0,2.55547226]
[1722272542544,14.16396008,66700.0,66699.0,2.55547226]
[1722272542745,14.16396008,66700.0,66699.0,1.94010448]
[1722272542966,14.16396008,66700.0,66699.0,1.91396585]
[1722272543121,14.16396008,66700.0,66699.0,1.92587426]
[1722272543322,14.16396008,66700.0,66699.0,1.77587426]
[1722272543537,14.16396008,66700.0,66699.0,1.92387426]
[1722272543739,14.01403508,66700.0,66699.0,1.87387426]
[1722272543966,14.01354577,66700.0,66699.0,2.25361826]
[1722272544175,13.86362077,66700.0,66699.0,2.15361826]
[1722272544383,13.84011008,66700.0,66699.0,1.79547448]
[1722272544584,13.83511008,66700.0,66699.0,1.68356607]
[1722272544785,13.83511008,66700.0,66699.0,0.89947201]
[1722272544988,13.83511008,66700.0,66699.0,0.09357226]
[1722272545188,13.83511008,66700.0,66699.0,0.84320726]
[1722272545598,13.83511008,66700.0,66699.0,0.24349926]
[1722272546094,13.83511008,66700.0,66699.0,0.84320726]
[1722272546680,13.83511008,66700.0,66699.0,1.23280126]
[1722272546909,13.83491008,66700.0,66699.0,1.24306126]
[1722272547128,13.8584253,66700.0,66699.0,1.24306126]
[1722272547543,13.8584253,66700.0,66699.0,1.59291526]
[1722272547921,13.8584253,66700.0,66699.0,1.56591526]
[1722272548052,13.8584253,66700.0,66699.0,1.61591526]
[1722272548889,13.8584253,66700.0,66699.0,1.56591526]
[1722272549085,13.8584253,66700.0,66699.0,1.61591526]
[1722272549472,13.8584253,66700.0,66699.0,1.96576926]
[1722272549674,13.8584253,66700.0,66699.0,2.13539926]
[1722272549871,13.8584253,66700.0,66699.0,1.73554526]
[1722272550073,13.8584253,66700.0,66699.0,1.75765526]
[1722272550738,13.8584253,66700.0,66699.0,2.05750926]
[1722272550949,13.8584253,66700.0,66699.0,2.08739926]
[1722272551467,13.8584253,66700.0,66699.0,2.12173948]
[1722272551768,13.8584253,66700.0,66699.0,1.27740148]
[1722272551970,13.8584253,66700.0,66699.0,1.59291526]
[1722272552372,13.8584253,66700.0,66699.0,1.54291526]
[1722272552574,13.8584253,66700.0,66699.0,1.64291526]
[1722272553104,13.8584253,66700.0,66699.0,1.59291526]
[1722272553297,13.8584253,66700.0,66699.0,0.54335326]
[1722272553715,13.8584253,66700.0,66699.0,1.14306126]
[1722272554124,13.8584253,66700.0,66699.0,0.84320726]
[1722272554510,13.8584253,66700.0,66699.0,1.14306126]
[1722272554713,13.8584253,66700.0,66699.0,0.84320726]
[1722272554915,13.8584253,66700.0,66699.0,0.84413126]
[1722272555165,13.8584253,66700.0,66699.0,0.94413126]
[1722272556067,13.8584253,66700.0,66699.0,1.26698526]
[1722272556731,13.8584253,66700.0,66699.0,1.80657926]
[1722272557155,13.85092489,66700.0,66699.0,1.80657926]
[1722272557560,13.85092489,66700.0,66699.0,1.90857926]
[1722272557760,13.85092489,66700.0,66699.0,1.85857926]
[1722272557922,13.82064619,66700.0,66699.0,2.23848326]
[1722272558163,13.67072119,66700.0,66699.0,1.88862926]
[1722272558533,13.65835603,66700.0,66699.0,1.97296948]
[1722272558738,13.65835603,66700.0,66699.0,1.88862926]
[1722272558943,13.65835603,66700.0,66699.0,2.43648326]
[1722272558944,13.31618799,66700.0,66699.0,2.43648326]
[1722272559148,13.19557418,66700.0,66699.0,2.53848326]
[1722272559360,13.08861918,66700.0,66699.0,2.83833726]
[1722272559535,12.32926597,66700.0,66699.0,2.84661856]
[1722272559743,11.85357416,66700.0,66699.0,2.92252311]
[1722272559923,10.00256142,66700.0,66699.0,3.72477656]
[1722272560124,9.9012742,66700.0,66699.0,2.19676456]
[1722272560461,9.9012742,66700.0,66699.0,2.23181107]
[1722272560462,9.8413042,66700.0,66699.0,2.23181107]
[1722272560606,9.8413042,66700.0,66699.0,1.87995707]
[1722272560808,9.7513492,66700.0,66699.0,1.84491056]
[1722272561262,9.58860024,66700.0,66699.0,2.24676456]
[1722272561534,9.48946213,66700.0,66699.0,2.91816211]
[1722272561671,9.48946213,66700.0,66699.0,2.84817276]
[1722272561672,9.35888231,66700.0,66699.0,2.84817276]
[1722272561952,9.35888231,66700.0,66699.0,2.88630261]
[1722272561953,9.32345429,66700.0,66699.0,2.88630261]
[1722272562123,9.17352929,66700.0,66699.0,2.84661856]
[1722272562390,8.94360495,66700.0,66699.0,2.95629196]
[1722272562567,8.91862112,66700.0,66699.0,3.63438441]
[1722272562742,8.90964328,66700.0,66699.0,2.23146048]
[1722272562941,8.90964328,66700.0,66699.0,2.58489441]
[1722272563156,8.75073942,66700.0,66699.0,2.58489441]
[1722272563341,8.69328079,66700.0,66699.0,2.58489441]
[1722272563547,8.68429431,66700.0,66699.0,2.28489441]
[1722272563733,8.38429431,66700.0,66699.0,2.28489441]
[1722272563935,8.37531444,66700.0,66699.0,2.28489441]
[1722272564132,8.21652181,66700.0,66699.0,2.54661856]
[1722272564331,8.21652181,66700.0,66699.0,2.84661856]
[1722272564558,8.13990873,66700.0,66699.0,2.84661856]
[1722272564762,7.99218343,66700.0,66699.0,2.84661856]
[1722272564964,7.99218343,66700.0,66699.0,2.87465701]
[1722272564965,7.93418343,66700.0,66699.0,2.87465701]
[1722272565178,7.75726534,66700.0,66699.0,2.88474841]
[1722272565374,7.62434455,66700.0,66699.0,2.92194433]
[1722272565595,7.53457485,66700.0,66699.0,3.67158033]
[1722272565802,6.20720485,66700.0,66699.0,3.63096228]
[1722272565947,2.8580881,66700.0,66699.0,4.93826731]
[1722272566154,0.79907,66712.0,66711.0,0.202]
[1722272566340,0.79907,66712.0,66711.0,1.39750256]
[1722272566535,0.79907,66712.0,66711.0,0.64590256]
[1722272566746,0.79907,66712.0,66711.0,0.27871714]
[1722272566966,0.79907,66712.0,66711.0,0.57851714]
[1722272567166,0.79907,66712.0,66711.0,0.87831714]
[1722272567458,0.79907,66712.0,66711.0,1.47791714]
[1722272567685,0.79907,66712.0,66711.0,1.52991714]
[1722272567846,0.79907,66712.0,66711.0,2.04950714]
[1722272568046,0.79907,66712.0,66711.0,2.29930714]
[1722272568403,0.79907,66712.0,66711.0,1.99950714]
[1722272568609,0.79907,66712.0,66711.0,2.07250714]
[1722272568806,0.76909,66712.0,66711.0,2.42230714]
[1722272569011,0.76909,66712.0,66711.0,2.12406134]
[1722272569313,0.79259601,66712.0,66711.0,1.98232134]
[1722272569559,0.79259601,66712.0,66711.0,1.98076714]
[1722272569739,0.70265601,66712.0,66711.0,1.98076714]
[1722272569974,0.64269601,66712.0,66711.0,2.28056714]
[1722272570167,0.61271601,66712.0,66711.0,2.03432134]
[1722272570360,0.49279601,66712.0,66711.0,1.98076714]
[1722272570587,0.49279601,66712.0,66711.0,2.03276714]
[1722272570927,0.49279601,66712.0,66711.0,2.08276714]
[1722272571157,0.49279601,66712.0,66711.0,2.03276714]
[1722272571309,0.49279601,66712.0,66711.0,1.98076714]
[1722272571476,0.34289601,66712.0,66711.0,2.06796001]
[1722272571683,0.31939,66712.0,66711.0,2.15770001]
[1722272571901,0.18764148,66712.0,66711.0,2.90720101]
[1722272572124,0.07271607,66712.0,66711.0,3.20700101]
[1722272572362,0.43010131,66740.0,66739.0,1.078909]
[1722272572752,0.43010131,66740.0,66739.0,1.33681552]
[1722272572959,0.00084,66740.0,66739.0,1.33681552]
[1722272573381,0.00084,66740.0,66739.0,1.68648952]
[1722272573589,0.00084,66740.0,66739.0,1.73648952]
[1722272573731,0.00084,66740.0,66739.0,1.75948952]
[1722272574135,0.00084,66740.0,66739.0,1.76148952]
[1722272574337,0.00084,66740.0,66739.0,2.06116352]
[1722272574540,0.00084,66740.0,66739.0,1.76148952]
[1722272575152,8e-07,66740.0,66739.0,2.11116352]
[1722272575364,0.00845,66766.0,66765.0,1.078503]
[1722272575532,0.00845,66766.0,66765.0,1.33640952]
[1722272575724,0.00845,66766.0,66765.0,1.30635952]
[1722272576797,0.00845,66766.0,66765.0,1.33640952]
[1722272577425,0.0623,66765.0,66744.0,0.03230622]
[1722272577624,0.0623,66765.0,66714.0,0.05]
[1722272577625,0.0623,66745.0,66714.0,0.05]
[1722272577937,0.0623,66745.0,66717.0,0.42926131]
[1722272577938,0.07154355,66735.0,66717.0,0.42926131]
[1722272578141,0.07154355,66735.0,66712.0,0.1]
[1722272578517,0.0775,66743.0,66710.0,0.28930858]
[1722272578518,0.0775,66743.0,66741.0,0.149831]
[1722272578720,0.0775,66743.0,66742.0,0.29292939]
[1722272578921,0.0775,66743.0,66742.0,0.59259039]
[1722272579124,0.0775,66743.0,66742.0,0.89225139]
[1722272579125,0.02350162,66743.0,66742.0,0.89225139]
[1722272579361,0.0637,66757.0,66756.0,0.449397]
[1722272579362,0.0632,66757.0,66756.0,0.449397]
[1722272579529,0.0632,66757.0,66756.0,0.14309939]
[1722272580877,0.0632,66757.0,66744.0,0.329702]
[1722272580878,0.40550833,66757.0,66744.0,0.329702]
[1722272581015,0.40550833,66757.0,66746.0,0.14359937]
[1722272581016,0.07154355,66755.0,66746.0,0.14359937]
[1722272581214,0.07154355,66747.0,66746.0,0.14359937]
[1722272581418,0.07154355,66747.0,66717.0,0.05]
[1722272581419,0.07154355,66747.0,66722.0,0.00813104]
[1722272581638,0.07154355,66747.0,66726.0,0.14309939]
[1722272581639,0.07154355,66740.0,66726.0,0.14309939]
[1722272581845,0.07154355,66745.0,66734.0,0.14309939]
[1722272582045,0.12450758,66744.0,66743.0,0.149828]
[1722272582238,0.06225395,66744.0,66743.0,0.17614526]
[1722272582420,0.0632,66757.0,66743.0,0.14309939]
[1722272582652,0.00845,66766.0,66747.0,0.045]
[1722272582909,0.00845,66766.0,66744.0,0.0015542]
[1722272582910,0.00866822,66776.0,66769.0,0.05]
[1722272583207,0.05056465,66793.0,66766.0,0.0007]
[1722272583208,0.00866822,66795.0,66794.0,0.149714]
[1722272583410,0.00866822,66795.0,66794.0,1.20376342]
[1722272583597,0.00022,66801.0,66800.0,0.449101]
[1722272583747,1.12343092,66807.0,66806.0,0.501061]
[1722272583959,1.07540592,66807.0,66806.0,1.00995092]
[1722272584157,0.19648273,66807.0,66806.0,1.14483966]
[1722272584342,0.19648273,66807.0,66806.0,0.69216039]
[1722272584542,0.19648273,66807.0,66806.0,0.71516039]
[1722272584761,0.19648273,66807.0,66806.0,0.18951036]
[1722272584983,0.19648273,66807.0,66806.0,0.29278639]
[1722272585199,0.19648273,66807.0,66806.0,0.14309939]
[1722272585407,0.19648273,66807.0,66806.0,0.29278639]
[1722272585612,0.19648273,66807.0,66791.0,0.0015542]
[1722272585613,0.0661,66806.0,66791.0,0.0015542]
[1722272585889,0.0661,66806.0,66753.0,0.299607]
[1722272585890,0.21694355,66792.0,66749.0,0.03005]
[1722272586095,0.21694355,66792.0,66743.0,0.1]
[1722272586096,0.07154355,66761.0,66758.0,0.42926131]
[1722272586271,0.07154355,66768.0,66760.0,0.14979]
[1722272586469,0.07154355,66768.0,66756.0,0.005]
[1722272586470,0.0655,66760.0,66756.0,0.005]
[1722272586987,0.14924355,66761.0,66759.0,0.299585]
[1722272586988,0.0777,66761.0,66759.0,0.299585]
[1722272587152,0.07154355,66775.0,66756.0,0.005]
[1722272587153,0.07154355,66774.0,66756.0,0.005]
[1722272587354,0.07154355,66774.0,66763.0,0.149783]
[1722272587531,0.07154355,66774.0,66756.0,0.005]
[1722272587735,0.07154355,66774.0,66757.0,0.149794]
[1722272587938,0.07154355,66774.0,66756.0,0.005]
[1722272588139,0.07104355,66764.0,66757.0,0.14309939]
[1722272588318,0.07104355,66764.0,66758.0,0.14309939]
[1722272588536,0.0624,66773.0,66758.0,0.14309939]
[1722272588737,0.0624,66773.0,66756.0,0.005]
[1722272588738,0.0771,66775.0,66774.0,0.149758]
[1722272588996,0.0771,66775.0,66765.0,0.03005]
[1722272589202,0.0771,66775.0,66774.0,0.449275]
[1722272589456,0.0615,66782.0,66781.0,0.149743]
[1722272589626,0.0784,66793.0,66792.0,0.449155]
[1722272589862,0.0611,66802.0,66801.0,0.449094]
[1722272590058,0.0611,66802.0,66801.0,0.69219339]
[1722272590217,0.64390425,66802.0,66768.0,0.0082106]
[1722272590415,0.07154355,66790.0,66776.0,0.03005]
[1722272590617,0.07154355,66802.0,66781.0,0.05]
[1722272590815,0.07154355,66802.0,66780.0,0.299489]
[1722272590816,0.07154355,66788.0,66780.0,0.299489]
[1722272591019,0.07154355,66788.0,66787.0,0.449188]
[1722272591274,0.07154355,66788.0,66787.0,0.1]
[1722272591949,0.35964294,66788.0,66756.0,0.005]
[1722272592151,0.21654355,66757.0,66756.0,0.005]
[1722272592363,0.145,66757.0,66756.0,0.29789839]
[1722272592561,0.07154355,66764.0,66763.0,0.44935]
[1722272592764,0.0629,66767.0,66766.0,0.449329]
[1722272592963,0.0629,66767.0,66756.0,0.19809939]
[1722272592964,0.0629,66767.0,66756.0,0.14809939]
[1722272593176,0.07154355,66764.0,66757.0,0.14309939]
[1722272593376,0.07104355,66764.0,66757.0,0.14309939]
[1722272593588,0.0629,66767.0,66766.0,0.149776]
[1722272593793,0.72864531,66804.0,66766.0,0.149776]
[1722272593794,0.0629,66780.0,66766.0,0.14309939]
[1722272593992,0.0629,66780.0,66778.0,0.449248]
[1722272593993,0.07154355,66779.0,66778.0,0.449248]
[1722272594195,0.07154355,66779.0,66778.0,0.748747]
[1722272594399,0.07154355,66779.0,66760.0,0.299578]
[1722272594400,0.21464294,66779.0,66753.0,0.03368593]
[1722272594603,0.21464294,66779.0,66729.0,0.299717]
[1722272594604,0.07154355,66757.0,66729.0,0.299717]
[1722272594808,0.07154355,66757.0,66725.0,0.083]
[1722272594809,0.21524355,66757.0,66745.0,0.299647]
[1722272595200,0.21524355,66757.0,66745.0,0.299645]
[1722272595400,0.21524355,66757.0,66749.0,0.299626]
[1722272595595,0.21524355,66757.0,66755.0,0.149799]
[1722272595800,0.21524355,66757.0,66743.0,0.299654]
[1722272596002,0.21524355,66757.0,66744.0,0.299649]
[1722272596226,0.07154355,66747.0,66746.0,0.150734]
[1722272596423,0.0015542,66756.0,66755.0,0.449404]
[1722272596692,0.21524355,66757.0,66749.0,0.329679]
[1722272596912,0.07154355,66750.0,66749.0,0.449443]
[1722272597110,0.07154355,66750.0,66746.0,0.000913]
[1722272597111,0.07154355,66756.0,66746.0,0.000913]
[1722272597253,0.07309775,66756.0,66749.0,0.299628]
[1722272597457,0.07309775,66756.0,66747.0,0.14309939]
[1722272597458,0.07154355,66756.0,66747.0,0.14309939]
[1722272597668,0.07154355,66756.0,66755.0,0.149801]
[1722272597830,0.07309775,66756.0,66749.0,0.299628]
[1722272598030,0.07309775,66756.0,66751.0,0.149809]
[1722272598229,0.07154355,66756.0,66752.0,0.1]
[1722272598431,0.07154355,66756.0,66748.0,0.1]
[1722272598672,0.07154355,66756.0,66748.0,0.549451]
[1722272598673,0.07154355,66749.0,66748.0,0.549451]
[1722272599245,0.02349849,66755.0,66752.0,0.149807]
[1722272599605,0.02349849,66755.0,66706.0,0.0776]
[1722272599606,0.0653,66746.0,66706.0,0.0776]
[1722272599767,0.0653,66746.0,66709.0,0.42926131]
[1722272599768,0.07154355,66727.0,66709.0,0.42926131]
[1722272599995,0.07154355,66734.0,66713.0,0.05]
[1722272600192,0.07154355,66727.0,66714.0,0.14309939]
[1722272600733,0.07154355,66717.0,66716.0,0.149889]
[1722272600914,0.08,66726.0,66706.0,0.05]
[1722272601113,0.08,66726.0,66715.0,0.299781]
[1722272601257,0.07154355,66725.0,66715.0,0.14309939]
[1722272601454,0.08,66726.0,66725.0,0.149868]
[1722272601727,0.066,66737.0,66716.0,0.14309939]
[1722272601899,0.07154355,66734.0,66716.0,0.14309939]
[1722272602099,0.07154355,66734.0,66729.0,0.149858]
[1722272602278,0.07154355,66734.0,66730.0,0.149857]
[1722272602478,0.07154355,66734.0,66727.0,0.299727]
[1722272602711,0.07154355,66734.0,66716.0,0.14309939]
[1722272602899,0.066,66737.0,66721.0,0.1]
[1722272603121,0.066,66737.0,66714.0,0.03005]
[1722272603122,0.066,66737.0,66736.0,0.149844]
[1722272603533,0.08950507,66737.0,66736.0,0.149844]
[1722272603773,0.02350507,66737.0,66736.0,0.89231939]
[1722272604001,0.02350507,66737.0,66736.0,1.59169539]
[1722272604508,0.0759,66753.0,66752.0,1.048656]
[1722272604689,0.061,66758.0,66757.0,0.449391]
[1722272604865,0.076,66764.0,66752.0,0.24309939]
[1722272605069,0.07154355,66763.0,66762.0,0.449356]
[1722272605407,0.0633,66768.0,66762.0,0.449356]
[1722272605408,0.0633,66768.0,66762.0,0.24309939]
[1722272605600,0.0826,66785.0,66763.0,0.24309939]
[1722272605750,0.07154355,66774.0,66763.0,0.1]
[1722272605949,0.07154355,66781.0,66764.0,0.14309939]
[1722272606152,0.0826,66785.0,66764.0,0.14309939]
[1722272606153,0.0826,66785.0,66784.0,0.149736]
[1722272606352,0.0826,66785.0,66784.0,0.549208]
[1722272606694,0.0657,66795.0,66787.0,0.299455]
[1722272606850,0.0831,66796.0,66788.0,0.24309939]
[1722272606851,0.07154355,66794.0,66788.0,0.24309939]
[1722272607058,0.07154355,66794.0,66789.0,0.299446]
[1722272607257,0.07154355,66794.0,66793.0,0.149716]
[1722272607700,0.19731273,66807.0,66793.0,0.24309939]
[1722272607901,0.19731273,66807.0,66806.0,0.449061]
[1722272608245,0.19731273,66807.0,66806.0,1.177859]
[1722272608578,0.19731273,66807.0,66806.0,1.477233]
[1722272609033,0.19731273,66807.0,66806.0,1.527233]
[1722272609247,0.22078967,66807.0,66806.0,1.67033239]
[1722272609452,0.22078967,66807.0,66806.0,1.62033239]
[1722272609581,0.22078967,66807.0,66806.0,1.32095839]
[1722272610329,0.22078967,66807.0,66806.0,1.02158439]
[1722272610673,0.22078967,66807.0,66806.0,1.59028239]
[1722272611205,0.22078967,66807.0,66806.0,1.32095839]
[1722272612047,0.22078967,66807.0,66785.0,0.1]
[1722272612048,0.22078967,66807.0,66787.0,0.03005]
[1722272612252,0.07154355,66795.0,66788.0,0.14309939]
[1722272612625,0.07154355,66795.0,66776.0,0.0636]
[1722272612626,0.0015542,66794.0,66776.0,0.0636]
[1722272612829,0.07154355,66779.0,66778.0,0.449248]
[1722272613035,0.07154355,66795.0,66794.0,0.149714]
[1722272613235,0.0015542,66794.0,66781.0,0.299482]
[1722272613435,0.0015542,66794.0,66785.0,0.149734]
[1722272613664,0.07154355,66786.0,66785.0,0.74867]
[1722272613966,0.07154355,66786.0,66767.0,0.349546]
[1722272613967,0.07154355,66795.0,66794.0,0.449142]
[1722272614104,0.07154355,66795.0,66794.0,0.74857]
[1722272614304,0.07154355,66795.0,66773.0,0.03005]
[1722272614305,0.0015542,66794.0,66773.0,0.03005]
[1722272614595,0.07154355,66788.0,66787.0,0.778697]
[1722272614723,0.07154355,66788.0,66787.0,0.92179639]
[1722272615116,0.07154355,66795.0,66794.0,0.449142]
[1722272615319,0.07154355,66795.0,66794.0,0.89166939]
[1722272615678,0.07234,66816.0,66794.0,0.14309939]
[1722272615879,0.07234,66816.0,66781.0,0.1]
[1722272615880,0.0771,66794.0,66768.0,0.29954]
[1722272616078,0.0771,66794.0,66776.0,0.149754]
[1722272616079,0.07154355,66777.0,66776.0,0.149754]
[1722272616509,0.07154355,66784.0,66783.0,0.149738]
[1722272616862,0.07154355,66784.0,66776.0,0.14309939]
[1722272616863,0.07154355,66784.0,66779.0,0.149746]
[1722272617108,0.07154355,66784.0,66783.0,0.149738]
[1722272617488,0.00149468,66792.0,66783.0,0.14309939]
[1722272617708,0.00149468,66792.0,66762.0,0.399569]
[1722272617709,0.07154355,66791.0,66784.0,0.14309939]
[1722272618022,0.07154355,66791.0,66790.0,0.449167]
[1722272618225,0.42926131,66805.0,66790.0,0.24309939]
[1722272618454,0.07154355,66805.0,66804.0,0.449074]
[1722272618724,0.07154355,66805.0,66804.0,0.748457]
[1722272618939,0.19731273,66807.0,66804.0,0.748457]
[1722272618940,0.19731273,66807.0,66806.0,0.748435]
[1722272619137,0.19731273,66807.0,66806.0,0.848435]
[1722272619366,0.19731273,66807.0,66806.0,1.32095839]
[1722272619496,0.19731273,66807.0,66788.0,0.002]
[1722272619497,0.299377,66806.0,66782.0,0.00833079]
[1722272619696,0.07154355,66784.0,66761.0,0.0765]
[1722272619901,0.07154355,66784.0,66762.0,0.14309939]
[1722272619902,0.07154355,66772.0,66762.0,0.14309939]
[1722272620280,0.07154355,66765.0,66764.0,0.748905]
[1722272620505,0.0015542,66771.0,66764.0,1.04178539]
[1722272620703,0.0015542,66771.0,66770.0,1.048372]
[1722272620904,0.07154355,66784.0,66770.0,0.14309939]
[1722272621174,0.07154355,66784.0,66783.0,0.149738]
[1722272621383,0.07154355,66784.0,66783.0,0.449215]
[1722272621556,0.07154355,66784.0,66783.0,0.748692]
[1722272621782,0.07154355,66798.0,66790.0,0.449169]
[1722272621984,0.07154355,66805.0,66795.0,0.03005]
[1722272622161,0.07154355,66798.0,66795.0,0.17314939]
[1722272622309,0.07154355,66798.0,66797.0,0.748533]
[1722272622514,0.05266266,66805.0,66804.0,0.449074]
[1722272622836,0.00546339,66805.0,66804.0,0.449074]
[1722272623041,0.19731273,66807.0,66806.0,0.748435]
[1722272623241,0.19731273,66807.0,66806.0,1.047809]
[1722272623441,0.19731273,66807.0,66806.0,1.147809]
[1722272623644,0.22079221,66807.0,66806.0,1.147809]
[1722272623846,0.22079221,66807.0,66806.0,1.29090839]
[1722272624115,0.22079221,66807.0,66806.0,1.62033239]
[1722272624495,0.22079221,66807.0,66806.0,1.67033239]
[1722272624631,0.22079221,66807.0,66806.0,1.96970639]
[1722272624832,0.19731273,66807.0,66806.0,1.96970639]
[1722272625040,0.19731273,66807.0,66806.0,2.02350639]
[1722272625243,0.19731273,66807.0,66806.0,2.05050639]
[1722272625445,0.13743873,66807.0,66806.0,2.35188039]
[1722272625688,0.10750173,66807.0,66806.0,1.70113239]
[1722272625917,0.10750173,66807.0,66806.0,1.45175839]
[1722272626064,0.10750173,66807.0,66806.0,1.75113239]
[1722272626243,0.10750173,66807.0,66806.0,1.75313239]
[1722272626647,0.10750173,66807.0,66806.0,1.85313239]
[1722272626938,0.10750173,66807.0,66806.0,1.87613239]
[1722272627699,0.10750173,66807.0,66806.0,1.70113239]
[1722272627900,0.13097634,66807.0,66806.0,1.75113239]
[1722272628095,0.13097634,66807.0,66806.0,1.77413239]
[1722272628343,0.13097634,66807.0,66806.0,1.97413239]
[1722272628545,0.13097634,66807.0,66806.0,2.27350639]
[1722272628877,0.13097634,66807.0,66806.0,2.27550639]
[1722272629078,0.13097634,66807.0,66806.0,1.62033239]
[1722272629276,0.13097634,66807.0,66806.0,0.62785972]
[1722272629486,0.13097634,66807.0,66806.0,0.89153439]
[1722272629693,0.13097634,66807.0,66806.0,1.19090839]
[1722272630348,0.13097634,66807.0,66806.0,1.22095839]
[1722272630721,0.13097634,66807.0,66806.0,1.19090839]
[1722272631104,0.13097634,66807.0,66806.0,1.24090839]